bitfinex-derivatives/quotes_BTCF0:USTF0_20241010
["timestamp","ask_amount","ask_price","bid_price","bid_amount"]
[1728571280798,0.37294,60634.0,60633.0,0.01490539]
[1728571280998,0.37294,60634.0,60620.0,0.0398]
[1728571281210,0.37294,60634.0,60626.0,0.08255]
[1728571281211,0.29,60628.0,60626.0,0.08255]
[1728571281602,0.29,60628.0,60627.0,0.082949]
[1728571281804,0.0004,60634.0,60632.0,0.082542]
[1728571281996,0.29,60633.0,60632.0,0.082542]
[1728571282304,0.0004,60634.0,60632.0,0.082542]
[1728571282504,0.0004,60634.0,60627.0,0.0164]
[1728571282505,0.001,60628.0,60627.0,0.0164]
[1728571282702,0.0004,60634.0,60633.0,0.082541]
[1728571282904,0.0004,60634.0,60633.0,0.443341]
[1728571283206,0.0074,60634.0,60633.0,0.443341]
[1728571283613,0.0004,60634.0,60633.0,0.443341]
[1728571285110,0.0024,60634.0,60633.0,0.443341]
[1728571285506,0.0024,60634.0,60633.0,0.082541]
[1728571285706,0.0054,60634.0,60633.0,0.443341]
[1728571286007,0.0044,60634.0,60633.0,0.443341]
[1728571286200,0.0014,60634.0,60633.0,0.443341]
[1728571286406,0.0044,60634.0,60633.0,0.443341]
[1728571286907,0.0054,60634.0,60633.0,1.538101]
[1728571287106,0.0074,60634.0,60633.0,1.538101]
[1728571289015,0.0054,60634.0,60633.0,1.538101]
[1728571289403,0.0054,60634.0,60633.0,0.938101]
[1728571289614,0.0034,60634.0,60633.0,0.938101]
[1728571290114,0.0024,60634.0,60633.0,1.538101]
[1728571290316,0.0004,60634.0,60633.0,1.540101]
[1728571292011,0.0004,60634.0,60633.0,1.538101]
[1728571293717,0.082527,60644.0,60643.0,0.082528]
[1728571294017,0.082924,60646.0,60641.0,0.3608]
[1728571294206,0.082924,60646.0,60645.0,0.082525]
[1728571294406,0.082529,60645.0,60641.0,0.3608]
[1728571294715,0.29,60642.0,60641.0,0.3608]
[1728571295412,0.472529,60642.0,60641.0,0.44333]
[1728571295600,0.39,60642.0,60641.0,0.44433]
[1728571295805,0.472529,60642.0,60641.0,0.44433]
[1728571296006,0.182529,60642.0,60641.0,0.44433]
[1728571296206,0.188529,60642.0,60641.0,0.44433]
[1728571296914,0.480529,60642.0,60641.0,0.002]
[1728571297119,1.575249,60642.0,60641.0,0.002]
[1728571297302,0.975249,60642.0,60641.0,0.002]
[1728571297507,1.00713739,60642.0,60641.0,0.002]
[1728571297804,0.975249,60642.0,60641.0,0.002]
[1728571298004,0.975249,60642.0,60633.0,0.0004]
[1728571298005,0.08254,60634.0,60633.0,0.0004]
[1728571298220,0.83334,60634.0,60633.0,0.0004]
[1728571298515,0.082548,60628.0,60627.0,0.0004]
[1728571298715,0.372548,60628.0,60627.0,0.082949]
[1728571299011,0.29,60628.0,60627.0,0.082949]
[1728571299512,0.29,60632.0,60630.0,0.082545]
[1728571299716,0.1,60632.0,60631.0,0.082544]
[1728571300014,0.182543,60632.0,60631.0,0.082544]
[1728571300211,0.1,60632.0,60631.0,0.082544]
[1728571300919,0.3608,60633.0,60632.0,0.082543]
[1728571301216,0.0004,60634.0,60633.0,0.082541]
[1728571302715,0.0054,60634.0,60633.0,0.082541]
[1728571305025,0.0084,60634.0,60633.0,0.082541]
[1728571305713,0.0084,60634.0,60633.0,0.372541]
[1728571308208,0.0054,60634.0,60633.0,0.38782574]
[1728571308423,0.0074,60634.0,60633.0,0.38782574]
[1728571308615,0.0004,60646.0,60645.0,0.082525]
[1728571308816,0.0004,60646.0,60645.0,0.443325]
[1728571310013,0.0004,60646.0,60645.0,0.444325]
[1728571310212,0.0034,60646.0,60645.0,0.444325]
[1728571311228,0.0064,60646.0,60645.0,0.445325]
[1728571311719,0.088923,60646.0,60645.0,0.084525]
[1728571311924,0.128823,60646.0,60645.0,0.084525]
[1728571312115,0.128823,60646.0,60645.0,0.002]
[1728571312116,0.418823,60646.0,60645.0,0.002]
[1728571312315,0.56070654,60646.0,60645.0,0.002]
[1728571312920,0.528823,60646.0,60645.0,0.002]
[1728571313126,0.528823,60646.0,60645.0,0.084525]
[1728571313725,0.4463,60646.0,60645.0,0.084525]
[1728571314021,0.1563,60646.0,60645.0,0.084525]
[1728571314224,0.0463,60646.0,60645.0,0.084525]
[1728571315620,0.1663,60646.0,60645.0,0.084525]
[1728571315824,0.538823,60646.0,60645.0,0.002]
[1728571316220,0.082525,60645.0,60636.0,0.3608]
[1728571316413,0.29,60638.0,60637.0,0.082536]
[1728571316719,0.4,60638.0,60637.0,0.082536]
[1728571316914,0.4,60638.0,60636.0,0.3608]
[1728571317221,0.082537,60636.0,60635.0,0.082538]
[1728571317416,0.12,60636.0,60635.0,0.082538]
[1728571318022,0.202537,60636.0,60635.0,0.082538]
[1728571318328,0.12,60636.0,60635.0,0.082538]
[1728571318727,0.121,60636.0,60635.0,0.082538]
[1728571318923,0.203537,60636.0,60635.0,0.082538]
[1728571319423,0.121,60636.0,60633.0,0.0004]
[1728571319629,0.73334,60634.0,60633.0,0.0004]
[1728571319815,0.83334,60634.0,60633.0,0.0004]
[1728571320016,0.86523261,60634.0,60633.0,0.0004]
[1728571320625,0.86523242,60634.0,60633.0,0.0004]
[1728571320823,0.86523242,60634.0,60627.0,0.0004]
[1728571320824,0.082548,60628.0,60627.0,0.0004]
[1728571321026,0.372548,60628.0,60627.0,0.0004]
[1728571321625,0.733348,60628.0,60627.0,0.0004]
[1728571321818,0.372548,60628.0,60627.0,0.0004]
[1728571322019,0.853348,60628.0,60627.0,0.0024]
[1728571322219,0.49484,60627.0,60620.0,0.0004]
[1728571322418,0.49484,60627.0,60612.0,0.0004]
[1728571322419,0.29,60621.0,60612.0,0.0004]
[1728571322626,0.29,60614.0,60613.0,0.082568]
[1728571322828,0.29,60614.0,60612.0,0.0004]
[1728571323130,0.0004,60613.0,60612.0,0.08297]
[1728571324328,0.0004,60613.0,60612.0,0.0064]
[1728571324531,0.272968,60613.0,60612.0,0.0064]
[1728571324730,0.1904,60613.0,60612.0,0.08297]
[1728571324928,0.1904,60613.0,60612.0,0.08897]
[1728571325340,0.1904,60613.0,60612.0,0.0064]
[1728571325631,0.311568,60613.0,60612.0,0.0064]
[1728571326420,0.312568,60613.0,60612.0,0.0134]
[1728571326629,0.312568,60613.0,60612.0,0.09597]
[1728571327333,0.412568,60613.0,60612.0,0.09597]
[1728571327929,0.33,60613.0,60612.0,0.09597]
[1728571328737,0.412568,60613.0,60612.0,0.09597]
[1728571329032,0.33,60613.0,60612.0,0.09597]
[1728571329634,0.412568,60613.0,60612.0,0.09597]
[1728571330029,0.33,60613.0,60612.0,0.09597]
[1728571330729,0.14,60613.0,60612.0,0.09597]
[1728571331434,0.36164,60623.0,60620.0,0.082559]
[1728571331640,0.3608,60623.0,60620.0,0.082559]
[1728571331828,0.082561,60619.0,60618.0,0.082561]
[1728571332029,0.082565,60616.0,60615.0,0.082565]
[1728571332228,0.082565,60616.0,60612.0,0.0138]
[1728571332229,0.3,60616.0,60612.0,0.0138]
[1728571332435,0.272568,60613.0,60612.0,0.0138]
[1728571332731,0.392568,60613.0,60612.0,0.09637]
[1728571332932,0.31,60613.0,60612.0,0.09637]
[1728571333238,0.31,60613.0,60612.0,0.08937]
[1728571333929,0.31,60613.0,60612.0,0.08337]
[1728571334326,0.392568,60613.0,60612.0,0.08337]
[1728571334533,0.392568,60613.0,60612.0,0.08937]
[1728571334938,0.392568,60613.0,60612.0,0.0068]
[1728571335133,0.392568,60613.0,60612.0,0.09637]
[1728571335435,0.392568,60613.0,60612.0,0.0138]
[1728571335738,0.392568,60613.0,60612.0,0.09637]
[1728571337735,0.392568,60613.0,60612.0,0.0138]
[1728571341741,0.082583,60602.0,60600.0,0.00247451]
[1728571341947,0.082583,60602.0,60588.0,0.3608]
[1728571341948,0.08259,60597.0,60588.0,0.3608]
[1728571342242,0.273001,60589.0,60588.0,0.3608]
[1728571342741,0.273001,60589.0,60580.0,0.082613]
[1728571342742,0.273001,60589.0,60583.0,0.3608]
[1728571342947,0.193001,60589.0,60587.0,0.082603]
[1728571343744,0.193001,60589.0,60588.0,0.012]
[1728571343938,0.193001,60589.0,60588.0,0.094602]
[1728571343939,0.3004,60589.0,60588.0,0.094602]
[1728571344247,0.3004,60589.0,60588.0,0.082602]
[1728571344442,0.3014,60589.0,60588.0,0.456402]
[1728571344645,0.3014,60589.0,60588.0,0.095602]
[1728571345344,0.3004,60589.0,60588.0,0.082602]
[1728571346647,0.3014,60589.0,60588.0,0.082602]
[1728571348542,0.0014,60589.0,60588.0,0.443402]
[1728571348744,0.0004,60601.0,60600.0,0.082586]
[1728571349051,0.0004,60601.0,60600.0,0.633386]
[1728571350250,0.0224,60601.0,60600.0,0.635386]
[1728571350448,0.0224,60601.0,60600.0,1.730426]
[1728571350648,0.19,60617.0,60600.0,1.64784]
[1728571350949,0.19,60617.0,60611.0,0.3608]
[1728571351247,0.443366,60615.0,60614.0,0.082567]
[1728571351641,0.01763243,60620.0,60612.0,0.19]
[1728571351854,0.19247529,60620.0,60617.0,0.082562]
[1728571352147,0.19247529,60620.0,60616.0,0.082563]
[1728571352148,0.08256,60619.0,60616.0,0.082563]
[1728571352343,0.19247529,60620.0,60619.0,0.08256]
[1728571352541,0.011,60615.0,60614.0,0.083567]
[1728571352742,0.1314,60615.0,60614.0,0.001]
[1728571352939,0.082578,60606.0,60605.0,0.00104]
[1728571353152,0.382978,60606.0,60600.0,0.0004]
[1728571353349,0.272585,60601.0,60600.0,0.0004]
[1728571353544,0.382585,60601.0,60600.0,0.0004]
[1728571353745,0.422685,60601.0,60600.0,0.0004]
[1728571354751,0.422685,60601.0,60600.0,0.0014]
[1728571355147,0.43826064,60601.0,60600.0,0.00265769]
[1728571355452,0.24826064,60601.0,60600.0,0.00265769]
[1728571356150,0.24826064,60601.0,60600.0,0.00365769]
[1728571356647,0.43826064,60601.0,60600.0,0.00365769]
[1728571356855,1.03826064,60601.0,60600.0,0.00365769]
[1728571357041,0.43826064,60601.0,60600.0,0.00365769]
[1728571357348,0.24826064,60601.0,60600.0,0.00365769]
[1728571359455,0.43826064,60601.0,60600.0,0.00365769]
[1728571360546,1.53330064,60601.0,60600.0,0.00365769]
[1728571360845,1.34330064,60601.0,60600.0,0.00365769]
[1728571361052,0.24826064,60601.0,60600.0,0.00365769]
[1728571362156,0.20816064,60601.0,60600.0,0.00365769]
[1728571362346,0.20816064,60601.0,60600.0,0.08624369]
[1728571362347,0.09816064,60601.0,60600.0,0.08624369]
[1728571362546,0.28816064,60601.0,60600.0,0.08624369]
[1728571363059,0.39816064,60601.0,60600.0,0.08624369]
[1728571363252,0.58816064,60601.0,60600.0,0.00365769]
[1728571363556,0.49504,60600.0,60588.0,0.3612]
[1728571363758,0.633801,60589.0,60588.0,0.0004]
[1728571363955,0.2904,60589.0,60588.0,0.083002]
[1728571365047,0.373001,60589.0,60588.0,0.0004]
[1728571365658,0.2904,60589.0,60588.0,0.083002]
[1728571365853,0.373001,60589.0,60588.0,0.0004]
[1728571366061,0.2904,60589.0,60588.0,0.0014]
[1728571366258,0.2904,60589.0,60588.0,0.084002]
[1728571367158,0.373001,60589.0,60588.0,0.0014]
[1728571367455,0.2904,60589.0,60588.0,0.084002]
[1728571368547,0.0004,60589.0,60588.0,0.084002]
[1728571368753,0.0004,60589.0,60588.0,0.274002]
[1728571368950,0.0004,60589.0,60588.0,0.769162]
[1728571369458,0.0004,60589.0,60588.0,0.579162]
[1728571369660,0.0004,60589.0,60588.0,0.084002]
[1728571370954,0.1004,60589.0,60588.0,0.084002]
[1728571374274,0.0004,60589.0,60588.0,0.084002]
[1728571374767,0.01531379,60599.0,60588.0,0.7914]
[1728571374954,0.082979,60606.0,60605.0,0.082579]
[1728571374955,0.0004,60606.0,60605.0,0.082579]
[1728571375160,0.00084,60613.0,60606.0,0.082577]
[1728571375161,0.081876,60608.0,60606.0,0.082577]
[1728571375359,0.082573,60610.0,60608.0,0.082574]
[1728571375662,0.12,60610.0,60605.0,0.0004]
[1728571375856,0.19,60606.0,60605.0,0.0004]
[1728571376162,0.29,60606.0,60605.0,0.082979]
[1728571376357,0.372578,60606.0,60605.0,0.082979]
[1728571376666,0.372578,60606.0,60605.0,0.0004]
[1728571377262,0.376578,60606.0,60605.0,0.0024]
[1728571378258,0.376578,60606.0,60605.0,0.083979]
[1728571378466,0.376578,60606.0,60605.0,0.0024]
[1728571379863,0.39188942,60606.0,60605.0,0.0024]
[1728571380061,1.48688942,60606.0,60605.0,0.0024]
[1728571380257,0.39188942,60606.0,60605.0,0.0024]
[1728571380963,0.39188942,60606.0,60602.0,0.3608]
[1728571380964,0.30631142,60606.0,60602.0,0.3608]
[1728571381159,0.30631142,60606.0,60593.0,0.00247438]
[1728571381160,0.082594,60594.0,60593.0,0.00247438]
[1728571381358,0.57530046,60594.0,60593.0,0.00247438]
[1728571381561,0.72926439,60594.0,60593.0,0.00247438]
[1728571381765,0.68881834,60594.0,60593.0,0.00247438]
[1728571381953,0.57530046,60594.0,60593.0,0.00247438]
[1728571382155,0.6888339,60594.0,60593.0,0.00247438]
[1728571382566,0.61576851,60594.0,60593.0,0.00247438]
[1728571383358,0.61576851,60594.0,60572.0,0.3608]
[1728571383359,0.49512,60593.0,60572.0,0.3608]
[1728571383565,0.1904,60575.0,60572.0,0.3608]
[1728571383768,0.0004,60575.0,60574.0,0.08509746]
[1728571384570,0.0004,60575.0,60574.0,0.28909746]
[1728571384869,0.0004,60575.0,60574.0,0.09909746]
[1728571385072,0.0004,60575.0,60574.0,0.28909746]
[1728571385270,0.0004,60575.0,60574.0,1.39833746]
[1728571385471,0.443405,60587.0,60584.0,0.082607]
[1728571385664,0.443405,60587.0,60581.0,0.3608]
[1728571385665,0.3608,60587.0,60581.0,0.3608]
[1728571385862,0.0004,60582.0,60581.0,0.3608]
[1728571386071,0.0004,60603.0,60602.0,0.082583]
[1728571386375,0.0004,60603.0,60602.0,0.633383]
[1728571386980,0.0004,60603.0,60602.0,0.443383]
[1728571387170,0.0004,60603.0,60602.0,0.3608]
[1728571387376,0.202982,60603.0,60602.0,0.3608]
[1728571387776,0.202982,60603.0,60602.0,0.3618]
[1728571387777,0.204982,60603.0,60602.0,0.3618]
[1728571388276,0.207982,60603.0,60602.0,0.3628]
[1728571388474,1.77124,60603.0,60591.0,0.3608]
[1728571388676,0.19,60594.0,60591.0,0.082598]
[1728571388871,0.382596,60594.0,60591.0,0.082598]
[1728571389076,0.382596,60594.0,60592.0,0.3608]
[1728571389272,0.082596,60593.0,60592.0,0.3608]
[1728571389768,0.082596,60593.0,60587.0,0.41108086]
[1728571389978,0.19,60588.0,60587.0,0.443404]
[1728571390462,0.272602,60588.0,60587.0,0.3608]
[1728571390669,0.19,60588.0,60587.0,0.443404]
[1728571391169,0.19,60588.0,60587.0,0.444404]
[1728571391467,0.272602,60588.0,60587.0,0.3638]
[1728571391974,0.272602,60588.0,60587.0,0.446404]
[1728571394870,0.272602,60588.0,60587.0,0.3638]
[1728571395073,0.272602,60588.0,60587.0,0.003]
[1728571395977,0.382602,60588.0,60587.0,0.085604]
[1728571396375,0.3,60588.0,60587.0,0.085604]
[1728571397390,0.382602,60588.0,60587.0,0.085604]
[1728571398081,0.11,60588.0,60587.0,0.085604]
[1728571398394,0.00124,60603.0,60593.0,0.082595]
[1728571398579,0.0004,60603.0,60599.0,0.5508]
[1728571398780,0.1104,60603.0,60602.0,0.082583]
[1728571398981,0.192982,60603.0,60602.0,0.082583]
[1728571399181,0.1104,60603.0,60602.0,0.082583]
[1728571399679,0.1104,60603.0,60599.0,0.3608]
[1728571399893,0.272586,60600.0,60599.0,0.3608]
[1728571400090,0.372586,60600.0,60599.0,0.001]
[1728571401189,0.550386,60600.0,60599.0,0.002]
[1728571401386,0.22149589,60600.0,60599.0,0.002]
[1728571401594,0.58229562,60600.0,60599.0,0.002]
[1728571402090,0.13890962,60600.0,60599.0,0.002]
[1728571402391,0.107,60600.0,60599.0,0.084587]
[1728571402583,0.007,60600.0,60599.0,0.084587]
[1728571403388,0.089586,60600.0,60599.0,0.002]
[1728571403585,0.089586,60600.0,60599.0,0.001]
[1728571403790,0.082594,60595.0,60592.0,0.082597]
[1728571403987,0.19,60593.0,60592.0,0.082597]
[1728571405490,0.193,60593.0,60592.0,0.082597]
[1728571406796,0.196,60593.0,60592.0,0.082597]
[1728571407003,0.378596,60593.0,60592.0,0.082597]
[1728571407495,0.296,60593.0,60592.0,0.082597]
[1728571407695,0.006,60593.0,60592.0,0.082597]
[1728571408397,0.006,60593.0,60592.0,1.177717]
[1728571409202,0.0004,60603.0,60602.0,0.082583]
[1728571409407,0.0004,60603.0,60602.0,0.633383]
[1728571410496,0.0146257,60605.0,60604.0,0.082581]
[1728571410694,0.272574,60610.0,60609.0,0.082574]
[1728571410898,0.372574,60610.0,60609.0,0.082574]
[1728571411492,0.38793858,60610.0,60609.0,0.082574]
[1728571411798,0.01536458,60610.0,60609.0,0.083574]
[1728571412105,0.19,60628.0,60614.0,0.082567]
[1728571412297,0.00084,60629.0,60620.0,0.082559]
[1728571412298,0.082547,60629.0,60620.0,0.082559]
[1728571412504,0.2715,60632.0,60620.0,0.633359]
[1728571412703,0.082547,60629.0,60620.0,1.128239]
[1728571412898,0.082544,60631.0,60620.0,1.728239]
[1728571413097,0.082546,60630.0,60620.0,1.728239]
[1728571413303,0.312143,60632.0,60620.0,1.728239]
[1728571413508,0.2296,60632.0,60620.0,1.728239]
[1728571413807,0.082546,60630.0,60620.0,1.728239]
[1728571414006,0.2296,60632.0,60620.0,1.728239]
[1728571414204,0.082549,60627.0,60620.0,0.633359]
[1728571414701,0.082549,60627.0,60620.0,1.728239]
[1728571414903,0.0014,60621.0,60620.0,1.729239]
[1728571415098,0.0014,60621.0,60620.0,1.730239]
[1728571415298,0.443741,60634.0,60620.0,1.64768]
[1728571415299,0.3612,60634.0,60620.0,1.64768]
[1728571415514,0.0004,60634.0,60633.0,0.443341]
[1728571416400,0.0004,60634.0,60633.0,0.633341]
[1728571416599,0.0004,60634.0,60633.0,0.443341]
[1728571417209,0.0004,60634.0,60633.0,0.633341]
[1728571417607,0.0004,60634.0,60633.0,0.634341]
[1728571418201,0.1904,60646.0,60633.0,1.728101]
[1728571418202,0.082527,60644.0,60633.0,1.728101]
[1728571418404,0.082525,60645.0,60644.0,0.082526]
[1728571418608,0.272525,60645.0,60644.0,0.082526]
[1728571418818,0.19,60645.0,60644.0,0.082526]
[1728571419123,0.0004,60646.0,60641.0,0.19]
[1728571419307,0.0004,60646.0,60645.0,0.082525]
[1728571419611,0.082923,60646.0,60645.0,0.082525]
[1728571419815,0.0004,60646.0,60645.0,0.082525]
[1728571420007,0.0004,60646.0,60645.0,0.633325]
[1728571420712,0.0004,60646.0,60645.0,1.728005]
[1728571421313,0.0004,60646.0,60645.0,1.729005]
[1728571421509,0.0004,60646.0,60645.0,1.130005]
[1728571421715,0.0004,60646.0,60645.0,1.730005]
[1728571422429,0.121707,60658.0,60657.0,0.082509]
[1728571422610,0.0004,60667.0,60664.0,0.082498]
[1728571422915,0.0004,60667.0,60665.0,0.082498]
[1728571423322,0.0004,60667.0,60659.0,0.3608]
[1728571423323,0.082504,60660.0,60659.0,0.3608]
[1728571423628,0.082515,60652.0,60651.0,0.082516]
[1728571423807,0.272515,60652.0,60651.0,0.082516]
[1728571424324,0.08252,60649.0,60648.0,0.08252]
[1728571424520,0.0397,60659.0,60649.0,0.082519]
[1728571424521,0.272517,60651.0,60649.0,0.082519]
[1728571424710,0.272517,60651.0,60645.0,0.3612]
[1728571424711,0.08252,60649.0,60645.0,0.3612]
[1728571424906,0.08252,60649.0,60648.0,0.082521]
[1728571425112,0.082522,60647.0,60645.0,0.443724]
[1728571425313,0.082522,60647.0,60645.0,0.3612]
[1728571425508,0.082522,60647.0,60646.0,0.082523]
[1728571425723,0.041,60650.0,60648.0,0.08252]
[1728571425919,0.041,60650.0,60649.0,0.082519]
[1728571427112,0.082523,60647.0,60645.0,0.444724]
[1728571427622,0.082523,60646.0,60645.0,0.3622]
[1728571427813,0.11,60646.0,60645.0,0.3622]
[1728571428009,0.1097,60646.0,60645.0,0.443725]
[1728571428212,0.192223,60646.0,60645.0,0.443725]
[1728571428420,0.192223,60646.0,60645.0,0.444725]
[1728571428725,0.1097,60646.0,60645.0,0.445725]
[1728571429119,0.1097,60646.0,60645.0,0.3622]
[1728571429120,0.192223,60646.0,60645.0,0.3622]
[1728571429425,0.1097,60646.0,60645.0,0.445725]
[1728571429620,0.1097,60646.0,60645.0,0.3632]
[1728571429810,0.192223,60646.0,60645.0,0.3632]
[1728571430722,0.192223,60646.0,60645.0,0.3622]
[1728571430926,0.192223,60646.0,60645.0,0.3632]
[1728571431827,1.647703,60646.0,60645.0,0.002]
[1728571432214,1.047703,60646.0,60645.0,0.002]
[1728571432528,0.553023,60646.0,60645.0,0.002]
[1728571434423,0.1097,60646.0,60645.0,0.084525]
[1728571434831,0.123519,60650.0,60645.0,0.002]
[1728571435134,0.243519,60650.0,60649.0,0.082519]
[1728571435518,0.12,60650.0,60649.0,0.082519]
[1728571435718,0.0571621,60656.0,60649.0,0.082519]
[1728571435719,0.0416,60658.0,60649.0,0.082519]
[1728571435924,0.1616,60658.0,60657.0,0.082509]
[1728571436419,0.244107,60658.0,60657.0,0.082509]
[1728571436621,0.1616,60658.0,60657.0,0.082509]
[1728571437332,0.1616,60658.0,60657.0,0.083509]
[1728571437624,0.12,60658.0,60657.0,0.083509]
[1728571437826,0.00084,60663.0,60662.0,0.082502]
[1728571438025,0.0004,60666.0,60665.0,0.082498]
[1728571438330,0.0004,60666.0,60665.0,0.633298]
[1728571439627,0.0004,60666.0,60665.0,0.634298]
[1728571440425,0.0004,60666.0,60665.0,0.635298]
[1728571440930,0.0004,60666.0,60665.0,0.46035212]
[1728571441122,0.272896,60666.0,60665.0,0.002]
[1728571441322,0.314096,60666.0,60665.0,0.002]
[1728571442228,1.24612,60666.0,60652.0,0.3608]
[1728571442427,0.0004,60653.0,60652.0,0.443315]
[1728571442634,0.272512,60655.0,60652.0,0.3608]
[1728571442819,0.082514,60653.0,60652.0,0.3612]
[1728571443024,0.082514,60653.0,60652.0,0.082915]
[1728571443424,0.082514,60653.0,60652.0,0.0024]
[1728571443823,0.3608,60656.0,60652.0,0.0024]
[1728571444023,0.0376,60661.0,60660.0,0.082504]
[1728571445330,0.63316,60661.0,60660.0,0.001]
[1728571445533,0.715663,60661.0,60660.0,0.001]
[1728571446034,0.221103,60661.0,60660.0,0.001]
[1728571446422,0.221103,60661.0,60652.0,0.0024]
[1728571446423,0.715663,60661.0,60652.0,0.0024]
[1728571446626,0.3608,60656.0,60652.0,0.0024]
[1728571446835,0.3608,60658.0,60656.0,0.08251]
[1728571447027,0.543307,60658.0,60656.0,0.08251]
[1728571447228,0.4608,60658.0,60656.0,0.08251]
[1728571447530,0.371809,60657.0,60656.0,0.08251]
[1728571447724,0.491809,60657.0,60656.0,0.08251]
[1728571448134,0.491809,60657.0,60656.0,0.08351]
[1728571448824,0.4103,60657.0,60656.0,0.08351]
[1728571449137,0.001,60657.0,60656.0,0.08351]
[1728571449929,0.001,60657.0,60656.0,0.001]
[1728571450135,0.111,60657.0,60656.0,0.002]
[1728571450434,0.111,60657.0,60656.0,0.08451]
[1728571450926,0.195509,60657.0,60656.0,0.08351]
[1728571451126,0.114,60657.0,60656.0,0.08351]
[1728571451730,0.004,60657.0,60656.0,0.08351]
[1728571451930,0.004,60657.0,60656.0,0.37351]
[1728571452337,0.0004,60666.0,60665.0,0.082498]
[1728571454028,0.0004,60666.0,60665.0,0.083498]
[1728571454534,0.0004,60666.0,60665.0,0.082498]
[1728571454832,0.1004,60666.0,60665.0,0.082498]
[1728571455035,0.182896,60666.0,60665.0,0.082498]
[1728571455643,0.1004,60666.0,60665.0,0.082498]
[1728571456237,0.0004,60666.0,60665.0,0.082498]
[1728571456437,0.0004,60666.0,60665.0,0.121898]
[1728571456828,0.082896,60666.0,60665.0,0.082498]
[1728571457026,0.0004,60666.0,60665.0,0.082498]
[1728571457340,0.1104,60666.0,60665.0,0.082498]
[1728571457542,0.192896,60666.0,60665.0,0.082498]
[1728571458037,0.1104,60666.0,60664.0,0.3608]
[1728571458242,0.082498,60665.0,60664.0,0.443299]
[1728571458539,0.1,60665.0,60664.0,0.443299]
[1728571459240,0.1,60665.0,60664.0,0.082499]
[1728571459434,0.082504,60661.0,60660.0,0.082504]
[1728571459635,0.29,60662.0,60661.0,0.082503]
[1728571459829,0.4,60662.0,60661.0,0.082503]
[1728571460138,0.0004,60666.0,60661.0,0.082503]
[1728571460442,0.0004,60666.0,60665.0,0.082498]
[1728571461538,0.0004,60666.0,60660.0,0.001]
[1728571461539,0.1104,60666.0,60660.0,0.001]
[1728571461741,0.29,60661.0,60660.0,0.001]
[1728571461935,0.482503,60661.0,60660.0,0.001]
[1728571462240,0.4,60661.0,60654.0,0.3608]
[1728571462446,0.4,60661.0,60657.0,0.082508]
[1728571462447,0.082506,60659.0,60657.0,0.082508]
[1728571462637,0.082506,60659.0,60654.0,0.3608]
[1728571462638,0.182507,60659.0,60654.0,0.3608]
[1728571462943,0.182507,60659.0,60656.0,0.082509]
[1728571463341,0.182507,60659.0,60654.0,0.3608]
[1728571463342,0.082511,60656.0,60654.0,0.3608]
[1728571463543,0.1,60656.0,60655.0,0.082511]
[1728571463846,0.39,60656.0,60655.0,0.082511]
[1728571464638,0.082511,60655.0,60654.0,0.3748]
[1728571464838,0.182511,60655.0,60654.0,0.3748]
[1728571465043,0.182511,60655.0,60654.0,0.3678]
[1728571465346,0.182511,60655.0,60654.0,0.007]
[1728571465840,0.082514,60653.0,60652.0,0.0004]
[1728571466043,0.182514,60653.0,60652.0,0.0004]
[1728571466243,0.182514,60653.0,60652.0,0.082915]
[1728571467345,0.182514,60653.0,60652.0,0.091915]
[1728571467541,0.182514,60653.0,60652.0,0.0184]
[1728571468044,0.1,60653.0,60652.0,0.0184]
[1728571468240,0.1,60653.0,60652.0,0.100915]
[1728571468546,0.372514,60653.0,60652.0,0.0184]
[1728571468740,0.867154,60653.0,60652.0,0.0184]
[1728571468939,0.372514,60653.0,60652.0,0.0184]
[1728571470035,0.1,60653.0,60652.0,0.0184]
[1728571470242,0.1,60653.0,60652.0,0.100915]
[1728571470546,0.182514,60653.0,60652.0,0.100915]
[1728571470842,0.1,60653.0,60652.0,0.100915]
[1728571471344,0.5508,60657.0,60652.0,0.0184]
[1728571471543,0.6508,60657.0,60655.0,0.082511]
[1728571471942,0.73331,60657.0,60656.0,0.08251]
[1728571472656,0.082511,60656.0,60653.0,0.082514]
[1728571472950,0.082514,60653.0,60652.0,0.0184]
[1728571473146,0.202514,60653.0,60652.0,0.0094]
[1728571473652,0.202514,60653.0,60652.0,0.0004]
[1728571474357,0.202514,60653.0,60652.0,0.0094]
[1728571475447,0.182514,60653.0,60652.0,0.0094]
[1728571476354,0.182514,60653.0,60644.0,0.00247281]
[1728571476355,0.082525,60645.0,60644.0,0.00247281]
[1728571476543,0.733325,60645.0,60644.0,0.00247281]
[1728571477857,0.733325,60645.0,60644.0,0.00347281]
[1728571478356,0.733325,60645.0,60636.0,0.082536]
[1728571478357,0.082536,60637.0,60636.0,0.082536]
[1728571478558,0.272536,60637.0,60636.0,0.082536]
[1728571479257,0.3,60637.0,60636.0,0.082536]
[1728571479562,0.11,60637.0,60636.0,0.082536]
[1728571480152,0.11,60637.0,60636.0,0.083536]
[1728571480560,0.19,60640.0,60639.0,0.082533]
[1728571480853,0.3,60640.0,60639.0,0.082533]
[1728571481460,0.3,60640.0,60636.0,0.083536]
[1728571481461,0.6608,60640.0,60636.0,0.083536]
[1728571481662,0.272536,60637.0,60636.0,0.083536]
[1728571481861,0.272536,60637.0,60636.0,0.001]